bitfinex-derivatives/quotes_BTCF0:USTF0_20251230
["timestamp","ask_amount","ask_price","bid_price","bid_amount"]
[1767112366318,0.15228831,89158.0,89136.0,0.00016831]
[1767112366522,0.02634957,89157.0,89136.0,0.00016831]
[1767112366827,0.0112298,89145.0,89136.0,0.00016831]
[1767112367225,0.0112293,89149.0,89136.0,0.00016831]
[1767112367423,0.05664,89153.0,89136.0,0.00016831]
[1767112367723,0.00016831,89158.0,89136.0,0.00016831]
[1767112367924,0.02636324,89157.0,89139.0,0.0112304]
[1767112368227,0.0112288,89153.0,89136.0,0.00016831]
[1767112368431,0.01123,89143.0,89117.0,0.05664]
[1767112368619,0.0112304,89140.0,89120.0,0.0112328]
[1767112369020,0.0112298,89145.0,89118.0,0.09544]
[1767112369431,0.0112309,89136.0,89123.0,0.00016831]
[1767112370431,0.00016831,89140.0,89123.0,0.01140071]
[1767112370726,0.00016831,89140.0,89100.0,0.17761949]
[1767112370727,0.0112312,89134.0,89109.0,0.15208]
[1767112370921,0.0112315,89132.0,89111.0,0.011234]
[1767112371429,0.011231,89136.0,89109.0,0.15208]
[1767112371732,0.011231,89136.0,89114.0,0.00016831]
[1767112372129,0.00016831,89140.0,89114.0,0.01140191]
[1767112372723,0.00016831,89140.0,89090.0,0.24629345]
[1767112372724,0.0112322,89126.0,89104.0,0.0112348]
[1767112372932,0.15208,89125.0,89090.0,0.22302409]
[1767112373117,0.0112306,89139.0,89101.0,0.0112352]
[1767112373319,0.17844713,89138.0,89100.0,0.0678753]
[1767112373519,0.02636713,89137.0,89112.0,0.00016831]
[1767112373730,0.02636713,89136.0,89112.0,0.00016831]
[1767112373930,0.02636713,89135.0,89112.0,0.00016831]
[1767112374124,0.02636713,89134.0,89112.0,0.00016831]
[1767112374336,0.15212,89133.0,89112.0,0.00016831]
[1767112374631,0.00016831,89140.0,89120.0,0.16638409]
[1767112374928,0.0112311,89135.0,89113.0,0.0112337]
[1767112375232,0.0112308,89137.0,89112.0,0.01140211]
[1767112375631,0.0112308,89137.0,89114.0,0.0112335]
[1767112375829,0.0112312,89134.0,89112.0,0.00016831]
[1767112376017,0.09544,89139.0,89112.0,0.00016831]
[1767112376018,0.0112315,89132.0,89112.0,0.00016831]
[1767112376530,0.09544,89139.0,89103.0,8.47e-05]
[1767112376731,0.00016831,89140.0,89109.0,0.0112342]
[1767112377031,0.0112311,89135.0,89112.0,0.0112339]
[1767112377427,0.01139871,89140.0,89103.0,0.0040847]
[1767112377628,0.17846627,89139.0,89103.0,0.0040847]
[1767112377925,0.03757697,89138.0,89103.0,0.0040847]
[1767112378132,0.0112307,89138.0,89103.0,0.0040847]
[1767112378330,0.15212,89139.0,89116.0,0.0112333]
[1767112378632,0.02634376,89138.0,89116.0,0.0112333]
[1767112378932,0.1633505,89139.0,89116.0,0.0112333]
[1767112379133,0.02634376,89138.0,89116.0,0.0112333]
[1767112379335,0.1633505,89139.0,89116.0,0.0112333]
[1767112380834,0.00016831,89140.0,89111.0,0.09544]
[1767112381027,0.1633492,89150.0,89112.0,0.05668]
[1767112381224,0.16638409,89170.0,89120.0,0.16638409]
[1767112381425,0.0110408,89177.0,89120.0,0.16638409]
[1767112381426,0.02633637,89169.0,89132.0,0.0112313]
[1767112381626,0.0112286,89155.0,89131.0,0.09544]
[1767112381828,0.0112286,89155.0,89132.0,0.09544]
[1767112382028,0.15212,89158.0,89135.0,0.00016831]
[1767112382326,0.0112295,89147.0,89135.0,0.00016831]
[1767112382521,0.0112299,89145.0,89135.0,0.00016831]
[1767112382727,0.00016831,89152.0,89135.0,1e-08]
[1767112382928,0.0112297,89146.0,89135.0,1e-08]
[1767112383134,0.01123,89144.0,89135.0,1e-08]
[1767112384031,0.0112295,89147.0,89135.0,1e-08]
[1767112384236,0.00016831,89152.0,89135.0,1e-08]
[1767112384735,0.09544,89151.0,89135.0,1e-08]
[1767112385034,0.00016831,89152.0,89135.0,1e-08]
[1767112385035,0.0112297,89146.0,89135.0,1e-08]
[1767112385229,0.01123,89144.0,89135.0,1e-08]
[1767112385431,0.0112299,89144.0,89135.0,1e-08]
[1767112385829,0.00016831,89152.0,89135.0,1e-08]
[1767112386025,0.0112296,89147.0,89135.0,1e-08]
[1767112386730,0.15208,89146.0,89135.0,1e-08]
[1767112387538,0.00016831,89152.0,89103.0,8.47e-05]
[1767112387741,0.17841688,89151.0,89113.0,0.0112337]
[1767112387944,0.02633688,89150.0,89113.0,0.0112337]
[1767112388133,0.011231,89135.0,89111.0,0.0112339]
[1767112388644,0.00016831,89132.0,89111.0,0.0112339]
[1767112390142,0.00016831,89132.0,89103.0,8.47e-05]
[1767112390338,0.0112324,89125.0,89103.0,8.47e-05]
[1767112390837,0.0112331,89119.0,89103.0,8.47e-05]
[1767112391745,0.15208,89126.0,89103.0,8.47e-05]
[1767112392141,0.0112326,89123.0,89103.0,8.47e-05]
[1767112392346,0.15208,89126.0,89103.0,0.0113197]
[1767112392948,0.0112329,89121.0,89103.0,8.47e-05]
[1767112393143,0.00016831,89132.0,89103.0,8.47e-05]
[1767112393349,0.17854267,89131.0,89103.0,8.47e-05]
[1767112393550,0.0112326,89123.0,89103.0,8.47e-05]
[1767112393749,0.0112322,89126.0,89103.0,8.47e-05]
[1767112393934,0.0112325,89123.0,89103.0,8.47e-05]
[1767112394138,0.0112329,89120.0,89093.0,0.05664]
[1767112394335,0.00016831,89115.0,89094.0,0.09544]
[1767112395142,0.09544,89125.0,89108.0,0.0112343]
[1767112395443,0.09544,89125.0,89106.0,0.0112346]
[1767112396041,0.09544,89125.0,89107.0,0.00016831]
[1767112396242,0.02664042,89124.0,89107.0,0.00016831]
[1767112396450,0.00016831,89124.0,89107.0,0.00016831]
[1767112398254,0.15216,89129.0,89107.0,0.00016831]
[1767112398454,0.0112322,89126.0,89107.0,0.00016831]
[1767112398652,0.0112325,89124.0,89107.0,0.00016831]
[1767112398848,0.0264782,89123.0,89107.0,0.00016831]
[1767112399054,0.011232,89127.0,89107.0,0.00016831]
[1767112399247,0.15216,89129.0,89107.0,0.00016831]
[1767112399248,0.0112327,89122.0,89107.0,0.00016831]
[1767112400054,0.01140051,89126.0,89107.0,0.00016831]
[1767112400254,0.02647924,89125.0,89107.0,0.00016831]
[1767112400456,0.02647924,89124.0,89107.0,0.00016831]
[1767112400645,0.02647924,89123.0,89107.0,0.00016831]
[1767112400847,0.02647924,89122.0,89107.0,0.00016831]
[1767112401148,0.02647924,89122.0,89092.0,0.0112364]
[1767112401149,0.15216,89125.0,89090.0,0.0112367]
[1767112401356,0.15216,89127.0,89106.0,0.0112346]
[1767112401553,0.0112322,89126.0,89105.0,0.0112347]
[1767112402251,0.00016831,89124.0,89112.0,0.0112338]
[1767112402452,0.0112298,89145.0,89110.0,0.05668]
[1767112402651,0.01123,89143.0,89123.0,0.0112325]
[1767112402846,0.01123,89143.0,89120.0,0.0112328]
[1767112402847,0.12195375,89142.0,89120.0,0.0112328]
[1767112403053,0.02647375,89141.0,89116.0,0.09548]
[1767112403259,0.02647375,89140.0,89116.0,0.09548]
[1767112403559,0.00016831,89137.0,89119.0,0.00016831]
[1767112403753,0.00016831,89137.0,89120.0,0.0112329]
[1767112404064,0.00016831,89137.0,89119.0,0.00016831]
[1767112404065,0.00016831,89137.0,89126.0,0.011232]
[1767112404255,0.00016831,89137.0,89119.0,0.00016831]
[1767112404256,0.08050207,89163.0,89127.0,0.09548]
[1767112404446,0.0112278,89161.0,89127.0,0.15212]
[1767112404643,0.02647424,89160.0,89127.0,0.15212]
[1767112404847,0.02647424,89159.0,89127.0,0.15212]
[1767112405159,0.00016831,89152.0,89138.0,0.0112305]
[1767112407658,0.00016831,89152.0,89135.0,0.011231]
[1767112407859,0.00016831,89152.0,89134.0,0.00016831]
[1767112408759,0.01139731,89152.0,89135.0,0.01121]
[1767112408952,0.15208,89151.0,89111.0,0.011234]
[1767112409153,0.0112301,89143.0,89120.0,0.0112328]
[1767112409359,0.0112304,89141.0,89117.0,0.0112333]
[1767112409757,0.0112298,89145.0,89120.0,0.0112329]
[1767112410062,0.0112293,89149.0,89125.0,0.0112322]
[1767112410254,0.0112296,89147.0,89125.0,0.1066722]
[1767112411362,0.0112299,89145.0,89125.0,0.09544]
[1767112412557,0.0112294,89148.0,89125.0,0.09544]
[1767112412758,0.0112296,89146.0,89125.0,0.1066722]
[1767112413965,0.15208,89151.0,89125.0,0.09544]
[1767112414166,0.02644807,89150.0,89115.0,0.0112335]
[1767112414363,0.03767737,89149.0,89114.0,0.0112336]
[1767112414666,0.03767747,89148.0,89114.0,0.0112336]
[1767112414867,0.0112311,89135.0,89114.0,0.0112336]
[1767112415254,0.00016831,89133.0,89116.0,0.00016831]
[1767112415661,0.00016831,89133.0,89096.0,0.09544]
[1767112415865,0.00016831,89133.0,89091.0,0.0112365]
[1767112415866,0.15208,89132.0,89097.0,0.15208]
[1767112416166,0.00016831,89133.0,89118.0,0.011233]
[1767112416563,0.00016831,89133.0,89112.0,0.15208]
[1767112416868,0.00016831,89133.0,89119.0,0.011233]
[1767112418561,0.00016831,89133.0,89098.0,0.0112356]
[1767112418761,0.00016831,89133.0,89111.0,0.011234]
[1767112418961,0.01139961,89133.0,89111.0,0.011234]
[1767112419163,0.0112317,89130.0,89109.0,0.09544]
[1767112419369,0.00016831,89133.0,89109.0,0.09544]
[1767112420157,0.011232,89128.0,89109.0,0.09544]
[1767112421875,0.0112322,89126.0,89084.0,0.0112374]
[1767112422057,0.00016831,89114.0,89085.0,0.15208]
[1767112422265,0.15208,89127.0,89093.0,0.0112362]
[1767112422464,0.0112333,89118.0,89093.0,0.0112362]
[1767112423275,0.00016831,89114.0,89097.0,0.00016831]
[1767112423975,0.00016831,89114.0,89097.0,0.09560831]
[1767112424170,0.0112325,89124.0,89101.0,0.0112352]
[1767112424371,0.011232,89127.0,89103.0,0.0112349]
[1767112424569,0.0112323,89125.0,89103.0,0.0112349]
[1767112424768,0.0112299,89145.0,89098.0,0.05664]
[1767112424975,0.17836695,89144.0,89102.0,0.0112351]
[1767112425171,0.0112324,89125.0,89114.0,0.00016831]
[1767112425376,0.0112326,89123.0,89114.0,0.00016831]
[1767112425674,0.09544,89126.0,89098.0,0.05664]
[1767112425873,0.0112328,89121.0,89098.0,0.05664]
[1767112426278,0.09544,89126.0,89098.0,0.05664]
[1767112426472,0.0112336,89115.0,89098.0,0.05664]
[1767112426674,0.0112331,89119.0,89103.0,0.00016831]
[1767112430874,0.09544,89126.0,89077.0,0.01114165]
[1767112431084,0.0112336,89115.0,89094.0,0.0112361]
[1767112431376,0.011232,89128.0,89078.0,0.15212]
[1767112431377,0.0112332,89118.0,89096.0,0.0112359]
[1767112431574,0.09548,89117.0,89098.0,0.0112356]
[1767112431968,0.00016831,89116.0,89098.0,0.0112356]
[1767112433776,0.00016831,89116.0,89095.0,0.011236]
[1767112435175,0.00016831,89116.0,89091.0,0.09548]
[1767112435176,0.00016831,89116.0,89099.0,0.0112355]
[1767112435376,0.00016831,89116.0,89091.0,0.09548]
[1767112435578,0.01123,89144.0,89106.0,0.0112345]
[1767112435579,0.09548,89121.0,89106.0,0.0112345]
[1767112436873,0.00016831,89122.0,89106.0,0.0112345]
[1767112437072,0.00016831,89122.0,89108.0,0.0112343]
[1767112437481,0.00016831,89122.0,89105.0,0.01140301]
[1767112437871,0.00016831,89122.0,89105.0,0.00016831]
[1767112438071,0.0112332,89118.0,89105.0,0.00016831]
[1767112438277,0.0112328,89121.0,89105.0,0.00016831]
[1767112438582,0.00016831,89122.0,89105.0,0.00016831]
[1767112438878,0.00016831,89122.0,89106.0,0.0112346]
[1767112439078,0.08050207,89151.0,89105.0,0.00016831]
[1767112439281,0.0112294,89148.0,89114.0,0.0112336]
[1767112439482,0.0262868,89147.0,89106.0,0.0112346]
[1767112439683,0.0112304,89140.0,89106.0,0.0112346]
[1767112439980,0.0112307,89138.0,89118.0,0.011233]
[1767112440278,1e-08,89137.0,89119.0,0.00016831]
[1767112440482,1e-08,89137.0,89129.0,0.0112317]
[1767112440676,1e-08,89137.0,89122.0,0.0112326]
[1767112441176,1e-08,89137.0,89120.0,0.0112328]
[1767112441371,1e-08,89137.0,89119.0,0.00016831]
[1767112441769,0.0112313,89133.0,89119.0,0.00016831]
[1767112441975,0.011231,89136.0,89119.0,0.00016831]
[1767112442972,0.0112316,89131.0,89119.0,0.00016831]
[1767112443880,0.09548,89133.0,89110.0,0.01868]
[1767112444185,0.15212,89133.0,89108.0,0.09548]
[1767112444484,0.0112325,89124.0,89108.0,0.09548]
[1767112444984,0.15212,89133.0,89108.0,0.09548]
[1767112445177,0.15212,89133.0,89112.0,0.00016831]
[1767112445485,0.0112331,89119.0,89112.0,1e-08]
[1767112445784,0.1067129,89120.0,89093.0,0.09548]
[1767112445976,0.0112329,89120.0,89094.0,0.09548]
[1767112446375,0.0112336,89115.0,89094.0,0.09548]
[1767112446680,0.00016831,89113.0,89096.0,0.00016831]
[1767112447882,0.0112346,89107.0,89090.0,0.05664]
[1767112448086,0.011235,89104.0,89087.0,0.09548]
[1767112450086,0.0112353,89102.0,89087.0,0.09548]
[1767112450288,0.0112353,89102.0,89069.0,0.0112393]
[1767112450289,0.0112344,89109.0,89063.0,0.07990936]
[1767112450487,0.16653387,89090.0,89064.0,0.1067199]
[1767112450693,0.00016831,89086.0,89067.0,0.0112396]
[1767112451189,0.00016831,89086.0,89057.0,8.496e-05]
[1767112451892,0.00016831,89086.0,89064.0,0.0112399]
[1767112452079,0.0112376,89083.0,89058.0,0.09548]
[1767112452278,0.0112376,89083.0,89057.0,0.05672496]
[1767112452279,0.15212,89085.0,89057.0,8.496e-05]
[1767112452493,0.0112384,89077.0,89057.0,8.496e-05]
[1767112452990,0.00016831,89086.0,89057.0,8.496e-05]
[1767112453295,0.13536,89085.0,89063.0,0.01124]
[1767112453493,0.00016831,89086.0,89063.0,0.01124]
[1767112453692,0.15212,89085.0,89063.0,0.01124]
[1767112453897,0.15212,89084.0,89059.0,0.0112405]
[1767112454189,0.0112387,89075.0,89057.0,8.496e-05]
[1767112454379,0.09548,89074.0,89057.0,8.496e-05]
[1767112454582,0.0112397,89067.0,89057.0,8.496e-05]
[1767112454784,0.0112398,89066.0,89057.0,8.496e-05]
[1767112454979,0.0112393,89070.0,89043.0,0.0112425]
[1767112455187,0.00016841,89065.0,89042.0,0.15212]
[1767112455688,0.00016841,89065.0,89049.0,0.0112418]
[1767112455897,0.09558351,89064.0,89044.0,0.0112424]
[1767112456384,0.09558351,89064.0,89047.0,0.0112421]
[1767112456586,0.09548,89073.0,89050.0,0.0112417]
[1767112456785,0.09548,89072.0,89047.0,0.09548]
[1767112457090,0.09548,89072.0,89048.0,0.0112419]
[1767112457391,0.2499955,89100.0,89044.0,0.09548]
[1767112457392,0.05668,89078.0,89050.0,0.16653387]
[1767112457689,0.00016841,89073.0,89052.0,0.0112414]
[1767112457890,0.00016841,89073.0,89055.0,0.00016841]
[1767112459491,0.0112394,89069.0,89055.0,0.00016841]
[1767112459793,0.09548,89068.0,89055.0,0.00016841]
[1767112460087,0.05668,89067.0,89055.0,1e-08]
[1767112460294,0.0112402,89063.0,89055.0,1e-08]
[1767112460997,0.0679197,89067.0,89055.0,1e-08]
[1767112461490,0.05668,89067.0,89036.0,0.05668]
[1767112461880,0.011241,89056.0,89036.0,0.05668]
[1767112462084,0.05668,89067.0,89036.0,0.0679235]
[1767112462397,0.0112411,89055.0,89033.0,0.09552]
[1767112462696,0.00016841,89053.0,89034.0,0.0112437]
[1767112462896,0.00016841,89053.0,89037.0,0.0112433]
[1767112463790,0.00016841,89053.0,89033.0,0.1067638]
[1767112463991,0.00016841,89053.0,89036.0,0.0112435]
[1767112464493,0.00016841,89053.0,89039.0,0.0112431]
[1767112464793,0.00016841,89053.0,89035.0,0.1067635]
[1767112465500,0.00016841,89053.0,89035.0,0.09552]
[1767112465697,0.00016841,89053.0,89039.0,0.0112431]
[1767112466089,0.00016841,89053.0,89035.0,0.09552]
[1767112466595,0.0112417,89051.0,89035.0,0.09552]
[1767112466901,0.0112417,89051.0,89030.0,0.05668]
[1767112466902,0.0112422,89047.0,89025.0,0.0112448]
[1767112467202,0.09552,89050.0,89027.0,0.0112445]
[1767112467797,0.09552,89050.0,89029.0,0.0112443]
[1767112470304,0.26205387,89050.0,89002.0,0.05668]
[1767112470500,0.16653387,89050.0,89013.0,0.0112463]
[1767112470699,0.0112431,89040.0,89015.0,0.011246]
[1767112470895,0.1522,89045.0,89014.0,0.1522]
[1767112471202,0.0112432,89039.0,89014.0,0.1522]
[1767112471399,0.0112435,89037.0,89014.0,0.1522]
[1767112471614,0.00016841,89034.0,89014.0,0.1522]
[1767112472102,0.00016841,89034.0,89014.0,0.1634463]
[1767112472495,0.00016841,89034.0,89000.0,0.05]
[1767112472798,0.00016841,89034.0,89007.0,0.1522]
[1767112472799,0.0112444,89030.0,89007.0,0.1522]
[1767112474404,0.0112444,89030.0,89007.0,0.1634471]
[1767112474804,0.00016841,89034.0,89010.0,0.0112468]
[1767112475201,0.00016841,89034.0,89000.0,0.05]
[1767112475406,0.0112444,89030.0,89008.0,0.011247]
[1767112476002,0.00016841,89034.0,89016.0,0.011246]
[1767112476203,0.00016841,89034.0,89017.0,0.15224]
[1767112476405,0.00016841,89034.0,89018.0,0.09556]
[1767112476812,0.0112439,89033.0,89018.0,0.09556]
[1767112477511,0.0112442,89031.0,89012.0,0.05668]
[1767112477701,0.00016841,89034.0,89012.0,0.05668]
[1767112477902,0.01141221,89034.0,89013.0,0.0112464]
[1767112478310,0.00016841,89034.0,89012.0,0.05668]
[1767112478507,0.00016841,89034.0,89014.0,0.0112462]
[1767112478908,0.00016841,89034.0,89012.0,0.05668]
[1767112479804,0.1068019,89049.0,89027.0,0.0112445]
[1767112480004,0.0112421,89047.0,89028.0,0.15224]
[1767112480199,0.0112427,89043.0,89029.0,0.09556]
[1767112480413,0.02628813,89042.0,89029.0,0.09556]
[1767112480620,0.02628813,89041.0,89029.0,0.09556]
[1767112480805,0.0112428,89042.0,89029.0,0.09556]
[1767112481116,0.0112434,89038.0,89029.0,0.09556]
[1767112481308,0.02631789,89037.0,89029.0,0.09556]
[1767112481612,0.02631789,89036.0,89029.0,0.09556]
[1767112481813,0.02631789,89035.0,89029.0,0.09556]
[1767112482010,0.01141101,89044.0,89029.0,0.09556]
[1767112482208,0.0112428,89042.0,89029.0,0.09556]
[1767112482410,0.011243,89040.0,89029.0,0.09556]
[1767112482607,0.0263164,89039.0,89029.0,0.09556]
[1767112483711,0.0263164,89038.0,89029.0,0.09556]
[1767112484020,0.00016841,89044.0,89033.0,0.0112438]
[1767112484219,0.0112417,89051.0,89030.0,0.0112442]
[1767112485307,0.01141031,89049.0,89030.0,0.0112442]
[1767112485711,0.00016841,89049.0,89029.0,0.15224]
[1767112486019,0.0112426,89043.0,89029.0,0.15224]
[1767112486220,0.0112423,89046.0,89029.0,0.15224]
[1767112487716,0.0112426,89044.0,89029.0,0.15224]
[1767112487912,0.0112428,89042.0,89029.0,0.15224]
[1767112488421,0.0112421,89047.0,89029.0,0.15224]
[1767112488613,0.0112424,89045.0,89029.0,0.15224]
[1767112489712,0.0112429,89041.0,89029.0,0.15224]
[1767112490016,0.0112437,89035.0,89026.0,0.00016841]
[1767112490311,0.0112437,89035.0,89000.0,0.21653387]
[1767112490312,0.0112452,89023.0,89021.0,0.05668]
[1767112490514,0.0112452,89023.0,89004.0,0.0112475]
[1767112490712,0.011244,89032.0,89012.0,0.0112464]
[1767112490916,0.08050207,89054.0,89007.0,0.15224]
[1767112490917,0.0112431,89040.0,89010.0,0.16653387]
[1767112491116,0.0112431,89040.0,89020.0,0.16653387]
[1767112491320,0.0112431,89040.0,89021.0,0.15224]
[1767112491510,0.0112431,89040.0,89022.0,0.09556]
[1767112491511,0.00016851,89039.0,89022.0,0.09556]
[1767112492113,0.09556,89049.0,89022.0,0.1068051]
[1767112492513,0.09556,89049.0,89021.0,0.05684851]
[1767112492514,0.09556,89049.0,89021.0,1e-08]
[1767112492723,0.0112444,89030.0,89021.0,1e-08]
[1767112493016,0.0112421,89048.0,89021.0,1e-08]
[1767112493017,0.0112453,89022.0,89021.0,1e-08]
[1767112493219,0.09556,89036.0,89021.0,1e-08]
[1767112493418,0.0112452,89023.0,89021.0,1e-08]
[1767112493618,0.0112448,89027.0,89021.0,1e-08]
[1767112493925,0.011245,89025.0,89021.0,1e-08]
[1767112494129,0.0112453,89023.0,89021.0,1e-08]
[1767112494511,0.0112453,89023.0,89006.0,0.00012872]
[1767112494512,0.15224,89022.0,89000.0,6e-08]
[1767112494717,0.0112478,89003.0,89000.0,6e-08]
[1767112494915,0.07341607,89037.0,88988.0,0.01124966]
[1767112495113,0.0112467,89011.0,88991.0,0.05668]
[1767112495314,0.1068062,89015.0,88992.0,0.011249]
[1767112495518,0.0112452,89023.0,88995.0,0.00016851]
[1767112495726,0.15224,89022.0,89000.0,0.16653387]
[1767112496019,0.0112451,89024.0,89001.0,0.05668]
[1767112496219,0.0112454,89022.0,89001.0,0.0679279]
[1767112496626,0.0112457,89019.0,89003.0,0.00016851]
[1767112496826,0.0112466,89012.0,89003.0,0.00016851]
[1767112497724,0.0112461,89016.0,88995.0,0.05672]
[1767112497924,0.0112464,89013.0,88995.0,0.05672]
[1767112498824,0.0112464,89013.0,88995.0,0.05688851]
[1767112499018,0.011246,89017.0,88995.0,0.06813711]
[1767112499217,0.00016851,89020.0,88995.0,0.00016851]
[1767112499418,0.0112468,89010.0,88995.0,0.00016851]
[1767112499618,4.939e-05,89009.0,88995.0,0.00016851]
[1767112501424,0.09556,89034.0,89013.0,0.0112463]
[1767112501621,0.011243,89041.0,89020.0,0.0112455]
[1767112501821,0.0112432,89039.0,89010.0,0.05672]
[1767112502223,0.09556,89040.0,89017.0,0.0112458]
[1767112502416,1e-08,89037.0,89020.0,0.00016851]
[1767112502628,0.09556,89053.0,89032.0,0.0112439]
[1767112502929,0.09556,89054.0,89032.0,0.0112439]
[1767112503125,0.05672,89057.0,89028.0,0.09556]
[1767112503126,0.08081351,89077.0,89028.0,0.09556]
[1767112503317,0.0112399,89065.0,89031.0,0.05672]
[1767112503520,0.09551,89064.0,89031.0,0.05672]
[1767112503821,0.0112386,89075.0,89050.0,0.16653387]
[1767112504030,0.0112386,89075.0,89051.0,0.0112416]
[1767112504227,0.0112365,89092.0,89050.0,0.05672]
[1767112504430,0.0112365,89092.0,89060.0,0.16653387]
[1767112504733,0.0112369,89089.0,89064.0,0.0112399]
[1767112504922,0.00016841,89085.0,89068.0,0.00016841]
[1767112505123,0.0112358,89097.0,89072.0,0.0112389]
[1767112505323,0.0112353,89101.0,89075.0,0.0112385]
[1767112505518,0.0112353,89101.0,89076.0,0.09556]
[1767112505723,0.09556,89103.0,89077.0,0.0112382]
[1767112505918,0.09556,89103.0,89076.0,0.09556]
[1767112505919,0.011236,89096.0,89076.0,0.09556]
[1767112506123,0.00016841,89095.0,89077.0,0.00016841]
[1767112506531,0.0112346,89107.0,89077.0,0.00016841]
[1767112506726,0.09556,89106.0,89077.0,0.00016841]
[1767112506918,0.0112355,89100.0,89077.0,0.00016841]
[1767112507626,0.00011087,89097.0,89077.0,0.00016841]
[1767112507922,0.011236,89096.0,89077.0,0.00016841]
[1767112508631,0.00011087,89097.0,89077.0,0.00016841]
[1767112509429,0.011236,89096.0,89077.0,0.00016841]
[1767112509833,0.00011087,89097.0,89077.0,0.00016841]
[1767112510530,0.0112361,89095.0,89077.0,0.00016841]
[1767112510730,0.00011087,89097.0,89077.0,0.00016841]
[1767112511031,0.0112359,89096.0,89077.0,0.00016841]
[1767112511328,0.0112359,89096.0,89055.0,0.23892]
[1767112511329,0.00011087,89097.0,89020.0,0.17845338]
[1767112511529,0.056184,89090.0,89021.0,0.39108]
[1767112511730,0.056184,89090.0,89021.0,0.11224982]
[1767112511731,0.0561905,89080.0,89021.0,0.11224982]
[1767112511931,0.0112403,89062.0,89022.0,0.15228]
[1767112512131,0.09552,89061.0,89026.0,0.0112447]
[1767112512326,0.00016841,89052.0,89035.0,0.00016841]
[1767112512531,0.09552,89061.0,89036.0,0.09552]
[1767112513037,0.0112406,89060.0,89036.0,0.09552]
[1767112513430,0.00011087,89057.0,89036.0,0.09552]
[1767112513735,0.0112413,89054.0,89036.0,0.09552]
[1767112513929,0.00011087,89057.0,89036.0,0.09552]
[1767112514131,0.0112411,89056.0,89036.0,0.09552]
[1767112514437,0.06072343,89090.0,89036.0,0.09552]
[1767112514626,0.0112397,89067.0,89036.0,0.09552]
[1767112514827,0.01124,89064.0,89036.0,0.09552]
[1767112515138,0.09552,89067.0,89036.0,0.09552]
[1767112515534,0.011241,89056.0,89043.0,0.00016841]
[1767112515839,0.0112403,89062.0,89043.0,0.00016841]
[1767112516224,0.0112407,89059.0,89043.0,0.00016841]
[1767112516929,0.0112404,89061.0,89043.0,0.00016841]
[1767112517330,0.0112404,89061.0,89043.0,0.00011841]
[1767112517730,0.0112397,89066.0,89043.0,0.00011841]
[1767112517932,0.0112401,89063.0,89043.0,0.00011841]
[1767112518334,0.0112405,89061.0,89043.0,0.00011841]
[1767112518527,5e-05,89062.0,89043.0,0.00011841]
[1767112518735,0.0112411,89055.0,89043.0,0.00011841]
[1767112518942,5e-05,89062.0,89043.0,0.00011841]
[1767112519142,0.02552783,89061.0,89043.0,0.00011841]
[1767112519341,0.02552783,89060.0,89043.0,0.00011841]
[1767112519543,0.09552,89059.0,89043.0,0.00011841]
[1767112519744,0.0112419,89049.0,89033.0,0.09552]
[1767112519944,0.0112419,89049.0,89032.0,0.05676]
[1767112520642,0.0112422,89046.0,89032.0,0.05676]
[1767112520845,0.0112422,89046.0,89032.0,0.05692841]
[1767112521236,0.0112418,89050.0,89032.0,0.05692841]
[1767112521436,0.0112421,89047.0,89032.0,0.05692841]
[1767112521743,0.0112417,89051.0,89032.0,0.05692841]
[1767112522341,0.0112419,89049.0,89032.0,0.00016841]
[1767112522736,0.0112422,89046.0,89032.0,0.00016841]
[1767112522945,0.0112426,89043.0,89032.0,0.00016841]
[1767112524044,0.0112422,89046.0,89033.0,0.00403]
[1767112524244,0.09552,89051.0,89033.0,0.00403]
[1767112524437,0.0112426,89044.0,89033.0,0.00403]
[1767112524636,0.09552,89051.0,89033.0,0.00403]
[1767112524839,0.0112426,89044.0,89033.0,0.00403]
[1767112525040,0.0112426,89044.0,89017.0,8.16e-05]
[1767112525041,0.0112441,89032.0,89017.0,8.16e-05]
[1767112525234,0.0112418,89050.0,89017.0,8.16e-05]
[1767112525235,0.09552,89041.0,89017.0,8.16e-05]
[1767112525648,0.0112443,89030.0,89017.0,8.16e-05]
[1767112526535,0.0112449,89026.0,88995.0,0.0112487]
[1767112526746,0.0112449,89026.0,88996.0,0.15228]
[1767112526948,0.0112449,89026.0,88997.0,0.11232989]
[1767112527149,0.0112449,89026.0,88996.0,0.15228]
[1767112527542,8.16e-05,89025.0,88997.0,0.11232989]
[1767112527741,8.16e-05,89025.0,89002.0,0.00016851]
[1767112528449,0.0112454,89022.0,89002.0,0.00016851]
[1767112528643,8.16e-05,89025.0,89002.0,0.00016851]
[1767112528840,0.0112458,89018.0,89002.0,0.00016851]
[1767112529043,0.0112454,89021.0,89002.0,0.00016851]
[1767112530053,8.16e-05,89025.0,89002.0,0.00016851]
[1767112530543,0.011246,89017.0,89002.0,0.00016851]
[1767112530750,0.011246,89017.0,88944.0,0.13796163]
[1767112530751,0.0112471,89008.0,88996.0,0.00628]
[1767112530954,8.16e-05,89007.0,88996.0,0.00628]
[1767112532150,0.0113289,89007.0,88994.0,0.09556]
[1767112532652,0.0113289,89007.0,88993.0,0.00016851]
[1767112532653,0.0112476,89004.0,88983.0,0.09556]
[1767112532838,8.16e-05,89007.0,88983.0,0.05676]
[1767112533044,0.0112455,89021.0,88987.0,0.0112497]
[1767112533244,0.0158,89017.0,88987.0,0.0112497]
[1767112533954,0.05676,89016.0,88947.0,0.0112547]
[1767112534150,0.0112494,88990.0,88982.0,1e-08]
[1767112534349,0.0112499,88986.0,88982.0,1e-08]
[1767112534648,0.0112494,88990.0,88959.0,0.15232]
[1767112535356,0.0112495,88989.0,88959.0,0.15232]
[1767112535654,0.0112493,88990.0,88968.0,0.00016851]
[1767112536156,0.09556,88992.0,88968.0,0.00016851]
[1767112536747,0.09556,88992.0,88913.0,0.056295]
[1767112536748,0.0112493,88991.0,88942.0,0.0112553]
[1767112537056,0.0112493,88991.0,88928.0,0.08948323]
[1767112537057,0.0112527,88963.0,88937.0,0.09556]
[1767112537252,0.0112527,88963.0,88939.0,0.00604]
[1767112537253,0.1068127,88963.0,88939.0,0.00604]
[1767112537551,0.0112489,88994.0,88939.0,0.00604]
[1767112537552,0.09556,88972.0,88939.0,0.00604]
[1767112537751,0.00016862,88964.0,88947.0,0.00011265]
[1767112537948,0.00012334,88971.0,88947.0,0.00011265]
[1767112538949,0.00016862,88968.0,88949.0,0.0112545]
[1767112539352,0.00016862,88968.0,88947.0,0.00011265]
[1767112539553,0.09576862,88968.0,88947.0,0.00011265]
[1767112539849,0.09576862,88968.0,88948.0,0.0112545]
[1767112540253,0.09576862,88968.0,88947.0,0.00011265]
[1767112540752,0.0112523,88967.0,88947.0,0.00011265]
[1767112541153,0.0112528,88963.0,88939.0,0.0172957]